Cogmind - Beta 13 @@@ ROGUE MODE // 2024.05.01 @ 21:04:50 Player: Qwazwak Result: Destroyed by II-5CX(R) with Subdweller Beam Cannon Performance ------------- Evolutions (0) 0 Regions Visited (2) 400 Robots Destroyed (22) 110 Value Destroyed (633) 633 Prototype IDs (0) 0 Alien Tech Used (0) 0 Bonus (0) 0 TOTAL SCORE: 1143 Bonus ------- None Cogmind --------- Core Integrity 0/250 Matter 92/300 Energy 100/100 System Corruption 0% Temperature Cool (9) Movement Core (1500) Ox29 Location -10/Subcaves Parts ------- > --- POWER (1) -------- (None) > --- PROPULSION (2) --- (None) > --- UTILITY (2) ------ Huge Storage Unit Structural Scanner > --- WEAPON (2) ------- Subdweller Beam Cannon > --- INVENTORY (25) --- Light Ion Engine Light Ion Engine Myomer Leg Wheel Wheel Wheel Wheel Wheel Disposable Heat Sink Large Storage Unit Subdweller Optics Sensor Array Light Armor Plating Scrap Shield Light Assault Rifle Peak State ------------ > --- POWER ------------ Ion Engine > --- PROPULSION ------- Light Treads Light Treads > --- UTILITY ---------- Huge Storage Unit Structural Scanner > --- WEAPON ----------- Subdweller Beam Cannon Assault Rifle > --- INVENTORY -------- Light Ion Engine Light Ion Engine Myomer Leg Wheel Wheel Wheel Wheel Wheel Disposable Heat Sink Large Storage Unit Subdweller Optics Sensor Array Light Armor Plating Scrap Shield Light Assault Rifle [Rating: 10] Favorites ----------- Power Light Ion Engine Engine Light Ion Engine Propulsion Light Treads Treads Light Treads Leg Aluminum Leg Wheel Wheel Flight Unit Flight Unit Utility Structural Scanner Device Structural Scanner Storage Huge Storage Unit Protection Light Armor Plating Weapon Assault Rifle Energy Cannon Subdweller Beam Cannon Ballistic Gun Assault Rifle Launcher Grenade Launcher Slashing Weapon Mining Claw Build | -11 -10 -10 ------- Run | Yrd Mat Sub Slots Evolved . | . . . Power . | . . . Propulsion . | . . . Utility . | . . . Weapon . | . . . Parts Attached 35 | 5 28 2 Power 3 | 1 2 . Engine 3 | 1 2 . Core . | . . . Reactor . | . . . Propulsion 14 | 2 12 . Treads 4 | . 4 . Leg 3 | 2 1 . Wheel 5 | . 5 . Hover . | . . . Flight 2 | . 2 . Utility 7 | . 7 . Device 3 | . 3 . Storage 2 | . 2 . Processor . | . . . Hackware . | . . . Protection 2 | . 2 . Artifact . | . . . Weapon 11 | 2 7 2 Energy Gun . | . . . Energy Cannon 1 | . . 1 Ballistic Gun 4 | 2 2 . Ballistic Cannon . | . . . Launcher 5 | . 4 1 Special Weapon . | . . . Impact Weapon . | . . . Slashing Weapon 1 | . 1 . Piercing Weapon . | . . . Special Melee Weapon . | . . . Unidentified Prototypes . | . . . Parts Lost 7 | . 1 6 Power 1 | . . 1 Propulsion 2 | . . 2 Utility . | . . . Weapon 4 | . 1 3 Highest Loss Streak 4 | . 1 4 To Critical Strikes . | . . . Average Slot Usage (%) 95 | . 96 94 Engine 13 | . 13 13 Treads 14 | . 10 28 Leg 1 | . 1 . Wheel 12 | . 15 . Device 12 | . 12 14 Storage 13 | . 13 14 Ballistic Gun 16 | . 16 14 Launcher 9 | . 9 5 Naked Turns . | . . . Heaviest Build 96 | 6 91 96 Greatest Support 40 | 20 40 40 Greatest Overweight (x) 11 | . 11 4 Average Overweight (x) 2 | . 2 2 Largest Inventory Capacity 25 | 5 25 25 Average Capacity 18 | 5 22 25 Most Carried 17 | 4 13 17 Average Carried 8 | 3 8 14 Final Capacity 25 | 5 25 25 Final Carried 16 | 4 12 16 Class Distribution -------------------- 82% | Mutant 17% | Scavenger-Mutant Dominant Class ---------------- Mutant | -10/Materials Mutant | -10/Subcaves Resources | -11 -10 -10 ----------- Run | Yrd Mat Sub Matter Collected 746 | 258 403 85 Remotely . | . . . Salvage Created 454 | 47 370 37 Parts 41 | 3 35 3 Haulers Intercepted . | . . . Recyclers Shooed . | . . . Parts Field Recycled . | . . . Retrieved Matter . | . . . Parts Self-Destructed . | . . . Prevented . | . . . Kills | -11 -10 -10 ------- Run | Yrd Mat Sub Combat Hostiles Destroyed 15 | 1 11 3 Guns 6 | 1 3 2 AOE 9 | . 8 1 Classes Destroyed 5 | 1 3 1 Worker 3 | . 3 . Builder 1 | . 1 . Watcher 3 | . 3 . Grunt 12 | 1 11 . Subdweller 3 | . . 3 Best Kill Streak 7 | 1 7 3 Combat Bots Only 5 | 1 5 3 Max Kills in Single Turn 3 | 1 3 1 Gunslinging . | . . . Exploded 3 | . 3 1 Melee . | . . . Uniques/NPCs Destroyed . | . . . Combat | -11 -10 -10 -------- Run | Yrd Mat Sub Hostile Shots Fired 92 | 3 48 41 Missed 37 | 2 21 14 Damage Taken 1220 | 10 518 692 Core 253 | . 86 167 Absorbed by Shields . | . . . Regen/Repaired (Parts) 76 | . 76 . Core Remaining (%) 100 | 100 . . Volleys Fired 54 | 2 41 11 Largest 2 | 2 2 2 Hottest 50 | 40 50 50 Shots Fired 88 | 4 65 19 Gun 61 | 4 46 11 Cannon . | . . . Launcher 27 | . 19 8 Special . | . . . Kinetic 61 | 4 46 11 Thermal . | . . . Explosive 27 | . 19 8 Electromagnetic . | . . . Robot Hit Streak 9 | 2 6 9 Robot Miss Streak 5 | 1 5 3 Penetration Max . | . . . Secondary Targets . | . . . Shots Hit Robots 43 | 2 30 11 Core Hits 46 | 2 36 8 Critical Kills . | . . . Critical Parts Destroyed . | . . . Critical Strikes . | . . . Melee Attacks . | . . . Impact . | . . . Slashing . | . . . Piercing . | . . . Sneak Attacks . | . . . Combat Hostiles . | . . . Follow-up Attacks . | . . . Damage Inflicted 1685 | 17 1205 463 Guns 352 | 17 258 77 Cannons . | . . . Explosions 1333 | . 947 386 Melee . | . . . Ramming . | . . . Kinetic 352 | 17 258 77 Thermal . | . . . Explosive 1333 | . 947 386 Electromagnetic . | . . . Impact . | . . . Slashing . | . . . Piercing . | . . . Highest Corruption . | . . . Average Corruption . | . . . Corruption Purged . | . . . Corruption Blocked . | . . . Overload Shots . | . . . Overflow Damage . | . . . Projectiles . | . . . Explosions . | . . . Melee . | . . . Knockbacks . | . . . Impact . | . . . Kinetic . | . . . Secondary . | . . . Self-Inflicted Damage 99 | . 34 65 Shots 5 | . 2 3 Rammed . | . . . Targets Rammed . | . . . Kicked . | . . . Crushed . | . . . Highest Temperature 15 | 6 15 . Average Temperature 4 | 6 4 . Received Heat Transfer 252 | 6 204 42 Siege Activations . | . . . Robots Corrupted . | . . . Combat Hostiles . | . . . Parts Fried . | . . . Impact Corruptions . | . . . Robots Melted . | . . . Combat Hostiles . | . . . Parts Melted . | . . . Heat Transferred . | . . . Parts Sabotaged . | . . . Parts Stolen . | . . . Parts Stripped . | . . . Power Chain Reactions . | . . . Alert | -11 -10 -10 ------- Run | Yrd Mat Sub Peak Influence 214 | 20 214 . Initial . | . . . Average 56 | 8 79 . Maximum Alert Level 1 | . 1 . Low Security (%) 96 | 100 94 . Level 1 3 | . 5 . Level 2 . | . . . Level 3 . | . . . Level 4 . | . . . Level 5 . | . . . High Security . | . . . Max Security . | . . . Squads Dispatched 2 | . 2 . Investigation 2 | . 2 . Extermination . | . . . Reinforcement . | . . . Assault . | . . . Garrison . | . . . Intercept . | . . . Searches Triggered . | . . . Construction Impeded . | . . . Haulers Reinforced . | . . . Active Scanning Responses . | . . . Cargo Convoy Interrupts . | . . . Stealth | -11 -10 -10 --------- Run | Yrd Mat Sub Distress Signals . | . . . Communications Jammed . | . . . Distress Signals . | . . . Times Spotted 32 | 1 21 10 Peak Tracking Total 7 | 1 5 7 Tactical Retreats 1 | . 1 . Traps | -11 -10 -10 ------- Run | Yrd Mat Sub Traps Triggered 4 | . 4 . Indirectly . | . . . Trap Hack Attempts . | . . . Triggered . | . . . Disarmed . | . . . Reprogrammed . | . . . Reused . | . . . Traps Extracted . | . . . Installed . | . . . Triggered . | . . . Machines | -11 -10 -10 ---------- Run | Yrd Mat Sub Machines Disabled 1 | . 1 . Max in Single Turn 1 | . 1 . Machines Repaired . | . . . Machines Dismantled . | . . . Machines Sabotaged . | . . . Overloaded Fab Kills . | . . . Hacking | -11 -10 -10 --------- Run | Yrd Mat Sub Machines Accessed 6 | . 6 . Terminals 3 | . 3 . Fabricators . | . . . Repair Stations 1 | . 1 . Recycling Units 2 | . 2 . Scanalyzers . | . . . Garrison Access . | . . . Total Hacks 15 | . 15 . Successful 12 | . 12 . Failed 3 | . 3 . Catastrophic . | . . . Database Lockouts . | . . . Manual . | . . . Terminals 6 | . 6 . Fabricators . | . . . Repair Stations 7 | . 7 . Recycling Units 2 | . 2 . Scanalyzers . | . . . Garrison Access . | . . . Terminal Hacks 4 | . 4 . Alert Level 1 | . 1 . Registered Components 1 | . 1 . Zone Layout 2 | . 2 . Fabricator Hacks . | . . . Repair Station Hacks 6 | . 6 . Scan Component 3 | . 3 . Repair 3 | . 3 . Recycling Unit Hacks 2 | . 2 . Report Inventory 2 | . 2 . Scanalyzer . | . . . Garrison Access Hacks . | . . . Unauthorized Hacks . | . . . Terminals . | . . . Fabricators . | . . . Repair Stations . | . . . Recycling Units . | . . . Scanalyzers . | . . . Garrison Access . | . . . Data Cores Recovered . | . . . Used . | . . . Hacking Detections 3 | . 3 . Full Trace Events . | . . . Feedback Events . | . . . Feedback Blocked . | . . . Robot Schematics Acquired . | . . . Robots Built . | . . . Authchips . | . . . Time . | . . . Total Robot Build Rating . | . . . Part Schematics Acquired . | . . . Parts Built . | . . . Authchips . | . . . Time . | . . . Total Part Build Rating . | . . . Parts Repaired 3 | . 3 . Time 78 | . 78 . Parts Recycled . | . . . Recycled Matter . | . . . Retrieved Matter . | . . . Retrieved Components . | . . . Parts Scanalyzed . | . . . Part Schematics Acquired . | . . . Parts Damaged . | . . . Bothacking | -11 -10 -10 ------------ Run | Yrd Mat Sub Used RIF Installer . | . . . Robots Hacked . | . . . Non-combat . | . . . Combat . | . . . Robot Hacks Applied . | . . . Relay Couplers Released . | . . . Fabnet Peak Effective % . | . . . Robots Rewired . | . . . Allies Hacked . | . . . Hacks Repelled . | . . . Allies | -11 -10 -10 -------- Run | Yrd Mat Sub Total Allies . | . . . Largest Group . | . . . Highest-Rated Group . | . . . Highest-Rated Ally . | . . . Total Orders . | . . . Ally Attacks . | . . . Total Damage . | . . . Kills . | . . . Allies Corrupted . | . . . Allies Melted . | . . . Intel | -11 -10 -10 ------- Run | Yrd Mat Sub Robot Analysis Total . | . . . Derelict Logs Recovered . | . . . Drone Launches . | . . . Drone Recoveries . | . . . Exploration | -11 -10 -10 ------------- Run | Yrd Mat Sub Turns Passed 2787 | 758 1598 431 Spaces Moved 1087 | 173 791 123 Core 15 | 15 . . Treads 304 | . 181 123 Legs 201 | 158 43 . Wheels 566 | . 566 . Hover . | . . . Flight 1 | . 1 . Fastest Speed 50 | 50 80 320 Average Speed 179 | 113 172 322 Slowest Speed 917 | 120 917 480 Overloaded Moves . | . . . Propulsion Burnouts . | . . . Robots Hopped . | . . . Cave-ins Triggered . | . . . Exploration Rate (%) 41 | 12 98 13 Regions Visited 2 Branch Regions 1 Pre-discovered Areas . | . . . Known Exits Taken . | . . . Unknown Exits Taken 2 | 1 1 . Scrap Searched . | . . . Spaces Dug . | . . . Terrain Destroyed 138 | . 101 37 Melee . | . . . Projectile . | . . . AOE 138 | . 101 37 Terrain Rammed . | . . . Walls Destroyed . | . . . Machines Disabled . | . . . Actions | -11 -10 -10 --------- Run | Yrd Mat Sub Total 1830 | 728 960 142 Wait 614 | 545 68 1 Move 1085 | 172 790 123 Hop . | . . . Pick Up 33 | 4 24 5 Fast Attach 6 | 5 1 . Attach 11 | . 9 2 Detach . | . . . Swap 18 | . 18 . Drop 9 | . 9 . Fire 54 | 2 41 11 Melee . | . . . Ram . | . . . Kick . | . . . Crush . | . . . Escape Stasis . | . . . Rewire . | . . . Trap . | . . . Miscellaneous . | . . . Route ------- -11/Scrapyard -10/Materials (discovered 6 exits: [*Mat x3] / [*Min x2] / [*Sub]) -10/Subcaves History --------- Turn | Location | Event 2 | -11/Scrapyard | Met Revision 17 63 | -11/Scrapyard | Discovered new exit (range 8) 759 | -11/Scrapyard | Entered Materials 760 | -10/Materials | Build established: Mutant 1073 | -10/Materials | Discovered new exit (range 15) 1186 | -10/Materials | Discovered new exit (range 11) 1207 | -10/Materials | Repaired Wheel 1233 | -10/Materials | Repaired Wheel 1265 | -10/Materials | Repaired Wheel 1334 | -10/Materials | Build established: Scavenger-Mutant 1459 | -10/Materials | Discovered new exit (range 13) 1732 | -10/Materials | Discovered new exit (range 6) 1819 | -10/Materials | Build established: Mutant 1991 | -10/Materials | Discovered new exit (range 14) 2311 | -10/Materials | Discovered new exit (range 11) 2357 | -10/Materials | Entered Subcaves 2499 | -10/Subcaves | Core integrity fell below 50% 2641 | -10/Subcaves | Shifting Twisted Machinery released Sub. Beam Cannon 2774 | -10/Subcaves | Ambushed by swarm of Subdwellers 2787 | -10/Subcaves | Core integrity fell below 20% 2788 | -10/Subcaves | Destroyed by II-5CX(R) with Subdweller Beam Cannon Last Messages --------------- 02569_ Acquired 28 matter. 02584_ The unstable cave ceiling collapses. Sub. Beam Cannon falls loose from the Twisted Machinery. 02665_ Acquired Sub. Beam Cannon. A mess of Twisted Machinery falls from the cavern ceiling. 24-GPF(R) comes tumbling into view. 02776_ LV-INS(R) emerges from the Twisted Machinery. 02777_ 2N-S3B(R) emerges from the Twisted Machinery. 02777_ Ion Engine destroyed. 02778_ ZR-0WF(R) emerges from the Twisted Machinery. 02778_ II-5CX(R) emerges from the Twisted Machinery. 02781_ Lgt. Treads destroyed. 02783_ Assault Rifle destroyed. 02788_ Lgt. Treads destroyed. Map ----- +----------------------------------------------------+ | ?????????????????????????????????????????????????? | | ?????????????????????????????????????????????????? | | ?????????????????????????????????????????????????? | | ?????????????????????????????????????????????????? | | ?????????????????????????????????????????????????? | | ?????????????????????????????????????????????????? | | ?????????????????????????????????????????????????? | | ?????????????????????????????????????????????????? | | ?????????????????????????????????????????????????? | | ?????????????????????????????????????????????????? | | ?????????????????????????????????????????????????? | | ?????????????????????????????????????????????????? | | ?????????????????????????????????????????????????? | | ?????????????????????????????????????????????????? | | ## ????????####??????????????????????????????????? | | ##"????????######???????????####?????????????????? | | "???????##"##########??######?????????????????? | | ???????##" ##########?### ###????????????????? | | "????##" ## ###?## ###????????????????? | | ###???##""" ##### ##????????????????? | | ###??##"""" ##### ###???????????????? | | ######"""" ### ####??????????????? | | " "#####""" ## ## ######???????????? | | ###" ""##""" ## #####???????????? | | ###### " " ### #### R ##???????????? | | #"##### ##### #####;@ R # ???????????? | | " "##### ############## R #"???????????? | | " ### ###?#####?#### ## R """ ?????????? | | # ## ##?????????## ### R ???????? | | # ###?##### ??## ##### R ???????? | | # ######## ?## ###?### ???????? | | # ### ######??## ???????? | | ####??????? ????????? | | ## ##??????????? ????????? | | ### ###???????????? ?????????? | | #### ####????????????? ?????????? | | #### #####??????????????? ???????????? | | # #####????????????????????????????? | | ## #####??????????????????????????????? | | ##########???????????????????????????????? | | ##########?????????????????????????????????? | | ## ####???????????????????????????????????????? | | #### ##????????????????????????????????????????? | | #### ###????????????????????????????????????????? | | #### ###????????????????????????????????????????? | | #### ##?????????????????????????????????????????? | | #### ##?????????????????????????????????????????? | | # ## ##?????????????????????????????????????????? | | # ##?????????????????????????????????????????? | | ###?????????????????????????????????????????? | +----------------------------------------------------+ Best States ------------- Heat Dissipation 25 Energy Generation 10 Energy Capacity 250 Matter Stores 300 Matter Capacity 300 Sight Range 16 Terrain Scan Density 10 Armor Coverage 150 Evasion (%) 55 Recoil Reduction 2 Item Schematics ----------------- None Robot Schematics ------------------ None Fabricated ------------ Nothing Alien Tech Used ----------------- None Achievements -------------- None Challenges ------------ None Game ------ Seed SupercompositePortableLaser Manual? 0 Play Time 00:28:47 Cumulative 3.9 hours Start 2024.04.16 @ 23:45:06 End 2024.05.01 @ 21:04:50 Sessions 5 Manual Loads 0 Difficulty Rogue Special Mode None Game No. 2 Rogue 1 Adventurer 1 Explorer 0 Win Type - Total 0 Types 0/0/0/0/0/0/0/0/0 Lore% 1 Gallery% 7 Achievement% 7 Wizard Run 0 Options --------- Layout 1 ASCII 0 Keyboard 1 Movement Numpad Keybinds 0 Fullscreen 1 Font 32/SmallcapsGlow Map View 50x35 Zoom Use 0% Tactical HUD 1 Map Filters NONE Filters NONE Steam 0 RUN: ad6f28ac-f934-49d5-90bd-f5207a0390d7